Cogmind - Beta 15 @@@ ROGUE MODE // 2025.05.11 @ 21:22:06 Player: 7604 Result: Self-destructed Performance ------------- Evolutions (3) 1500 Regions Visited (11) 2200 Robots Destroyed (219) 1095 Value Destroyed (7732) 7732 Prototype IDs (49) 980 Alien Tech Used (0) 0 Bonus (1679) 1679 TOTAL SCORE: 15186 Bonus ------- High Alert Combat Kills 965 Follower Combat Kills 14 Entered Garrisons 400 Aligned with FarCom 300 Cogmind --------- Core Integrity 484/700 Matter 241/300 Energy 69/100 System Corruption 5% Temperature Cool (0) Movement Core (50) Location -7/Waste Parts ------- > --- POWER (1) -------- (None) > --- PROPULSION (4) --- (None) > --- UTILITY (6) ------ Machine Analyzer > --- WEAPON (2) ------- (None) > --- INVENTORY (5) ---- Authchip [Processor] Latent Energy Streamer AWS/Autocannon Peak State ------------ > --- POWER ------------ Enhanced Nuclear Core > --- PROPULSION ------- Gravmag System Gravmag System Gravmag System Gravmag System > --- UTILITY ---------- Huge Storage Unit Machine Analyzer Seismic Detector Hacking Suite System Shield System Shield > --- WEAPON ----------- Advanced Assault Cannon Longsword +1 > --- INVENTORY -------- Nuclear Core Armored Treads Improved VTOL Module Improved Cesium-ion Thruster Improved Heat Sink Small Storage Unit Structural Scanner Improved Terrain Scanner Improved Salvage Targeting Computer Hardened Medium Armor Plating Hardened Medium Armor Plating Improved Light Armor Plating Improved Shield Generator High-powered Tractor Beam Improved Trap Extractor Latent Energy Streamer Hypervelocity Gauss Rifle Mini Assault Cannon AWS/Autocannon Improved Grenade Launcher Improved Grenade Launcher Datajack [Rating: 57] Favorites ----------- Power Light Ion Engine Engine Light Ion Engine Power Core Light Nuclear Core Propulsion Armored Treads Treads Armored Treads Wheel Wheel Hover Unit Gravmag System Flight Unit Cooled Cesium-ion Thruster Utility Huge Storage Unit Device Seismic Detector Storage Huge Storage Unit Processor Machine Analyzer Hackware System Shield Protection Hardened Medium Armor Plating Weapon Advanced Assault Cannon Energy Gun Medium Laser Ballistic Gun Light Assault Rifle Ballistic Cannon Advanced Assault Cannon Launcher Missile Launcher Special Weapon Mining Laser Slashing Weapon Longsword +1 Special Melee Weapon Improved Datajack Build | -11 -10 -10 -10 -9 -8 -8 -8 -8 -8 -7 -7 ------- Run | Yrd Mat Min Exi Min Mat Gar Mat Gar Mat Fac Was Slots Evolved 6 | . . . . . 4 . . . . 2 . Power . | . . . . . . . . . . . . Propulsion 2 | . . . . . 2 . . . . . . Utility 4 | . . . . . 2 . . . . 2 . Weapon . | . . . . . . . . . . . . Parts Attached 141 | 7 7 2 2 10 28 7 11 6 18 42 1 Power 17 | 1 1 . . 1 4 . 2 1 2 5 . Engine 5 | 1 1 . . 1 . . 2 . . . . Core 12 | . . . . . 4 . . 1 2 5 . Reactor . | . . . . . . . . . . . . Propulsion 45 | 2 . 1 . 4 7 . 1 2 5 22 1 Treads 23 | 2 . 1 . 2 7 . 1 2 5 3 . Leg . | . . . . . . . . . . . . Wheel 9 | . . . . 2 . . . . . 7 . Hover 7 | . . . . . . . . . . 7 . Flight 6 | . . . . . . . . . . 5 1 Utility 50 | 2 2 . 1 2 11 6 4 1 10 11 . Device 20 | 1 1 . . 2 3 4 1 . 6 2 . Storage 6 | 1 1 . 1 . 1 . 1 . . 1 . Processor 5 | . . . . . 3 . . . . 2 . Hackware 5 | . . . . . . . . . . 5 . Protection 14 | . . . . . 4 2 2 1 4 1 . Artifact . | . . . . . . . . . . . . Weapon 29 | 2 4 1 1 3 6 1 4 2 1 4 . Energy Gun 1 | 1 . . . . . . . . . . . Energy Cannon . | . . . . . . . . . . . . Ballistic Gun 4 | 1 . . . . 1 . 1 . . 1 . Ballistic Cannon 15 | . 3 . . 1 3 1 3 2 1 1 . Launcher 5 | . . . . 2 2 . . . . 1 . Special Weapon 1 | . 1 . . . . . . . . . . Impact Weapon . | . . . . . . . . . . . . Slashing Weapon 1 | . . . 1 . . . . . . . . Piercing Weapon . | . . . . . . . . . . . . Special Melee Weapon 2 | . . 1 . . . . . . . 1 . Unidentified Prototypes 7 | . . . . . 1 . 1 . . 5 . Corrupted Parts 2 | . . 1 . 1 . . . . . . . System Corruption 8 | . . 3 . 5 . . . . . . . Parts Lost 38 | . . 1 . 5 3 1 . 2 11 7 8 Power 4 | . . . . 1 1 . . . 1 1 . Propulsion 18 | . . 1 . 2 1 . . 1 4 4 5 Utility 12 | . . . . 1 1 1 . 1 4 1 3 Weapon 4 | . . . . 1 . . . . 2 1 . Highest Loss Streak 8 | . . 1 . 5 2 1 . 1 5 1 8 To Critical Strikes 1 | . . . . . . . . 1 . . . Average Backups 18 | 5 11 14 16 16 19 21 22 22 21 18 6 Power . | . . 1 1 1 . . . . . . 1 Propulsion 2 | . 1 1 1 1 1 4 4 5 3 3 . Utility 7 | 2 5 6 6 5 6 8 9 7 7 7 . Weapon 7 | 1 3 5 7 7 9 8 8 8 9 6 2 Tool/Special . | . . . . . . . . . . . . Unused Backups 35 | . 3 2 . 1 4 3 5 1 3 9 4 Power 2 | . . . . . 1 . . . . 1 . Propulsion 11 | . . . . . 2 1 4 1 2 1 . Utility 12 | . 1 1 . 1 . 2 1 . 1 4 1 Weapon 9 | . 2 1 . . 1 . . . . 3 2 Tool/Special 1 | . . . . . . . . . . . 1 Average Slot Usage (%) 96 | . 99 100 100 91 98 100 90 93 94 98 76 Engine 4 | . 14 14 14 8 . . 2 . . . . Core 5 | . . . . . 8 9 6 8 8 6 4 Treads 28 | . 28 28 28 15 32 36 36 35 35 12 . Wheel 2 | . . . . 12 2 . . . . 10 . Device 10 | . 14 14 14 11 5 8 8 5 12 14 4 Storage 10 | . 13 14 14 14 9 9 9 9 9 7 7 Processor 1 | . . . . . 4 . . . . 4 7 Hackware 1 | . . . . . . . . . . 11 20 Protection 8 | . . . . . 16 18 10 16 9 5 . Ballistic Cannon 14 | . 12 27 2 18 16 17 17 16 15 6 . Slashing Weapon 2 | . . . 10 8 . . . . 2 5 7 Special Melee Weapon 1 | . . . 12 . 1 . . . . 1 . Peak Build Rating 57 | 7 11 12 22 27 47 47 50 49 48 57 50 Average Rating 32 | 6 9 10 18 20 35 43 44 44 42 45 41 On Entrance 27 | . 7 10 11 16 27 44 44 43 44 39 49 Naked Turns . | . . . . . . . . . . . . Heaviest Build 127 | 12 32 32 52 58 115 118 127 125 120 120 20 Greatest Support 86 | 40 40 40 40 43 80 80 82 86 86 85 24 Greatest Overweight (x) 11 | . . . 1 5 6 1 1 2 1 11 4 Average Overweight (x) . | . . . . 1 1 1 1 1 1 1 . Largest Inventory Capacity 25 | 8 15 15 20 20 25 25 25 25 25 25 10 Average Capacity 20 | 7 11 15 18 20 22 25 25 25 25 21 9 Most Carried 25 | 7 15 15 20 20 25 25 25 25 25 25 10 Average Carried 20 | 5 11 14 16 18 21 24 24 24 23 20 8 Final Capacity 25 | 8 15 15 20 20 25 25 25 25 25 10 5 Final Carried 25 | 7 15 15 20 18 25 25 25 24 24 9 5 Class Distribution -------------------- 74% | Mutant 10% | Scavenger-Mutant 5% | Skirmisher 3% | Hacker-Mutant Dominant Class ---------------- Mutant | -10/Materials Mutant | -10/Mines Mutant | -10/Exiles Mutant | -9/Mines Mutant | -8/Materials Mutant | -8/Garrison Mutant | -8/Materials Mutant | -8/Garrison Mutant | -8/Materials Scavenger-Mutant | -7/Factory Hacker-Sprinter | -7/Waste Resources | -11 -10 -10 -10 -9 -8 -8 -8 -8 -8 -7 -7 ----------- Run | Yrd Mat Min Exi Min Mat Gar Mat Gar Mat Fac Was Matter Collected 7925 | 297 285 132 . 541 1342 1123 679 1255 1054 1217 . Remotely 1643 | . . . . . 266 422 121 490 106 238 . Salvage Created 6292 | 145 543 90 . 75 1074 611 477 924 975 1378 . Parts 367 | 22 33 11 . 7 64 24 31 44 47 84 . Haulers Intercepted 12 | . 2 . . . 4 . 1 . . 5 . Recyclers Shooed 10 | 1 1 . . . 3 . 1 . 4 . . Parts Field Recycled . | . . . . . . . . . . . . Retrieved Matter . | . . . . . . . . . . . . Parts Self-Destructed . | . . . . . . . . . . . . Prevented . | . . . . . . . . . . . . Kills | -11 -10 -10 -10 -9 -8 -8 -8 -8 -8 -7 -7 ------- Run | Yrd Mat Min Exi Min Mat Gar Mat Gar Mat Fac Was Combat Hostiles Destroyed 167 | . 14 8 . 18 21 19 12 34 20 21 . Melee 20 | . . . . 3 3 . . 1 2 11 . Guns 11 | . 11 . . . . . . . . . . Cannons 88 | . 3 8 . 4 13 9 10 22 14 5 . AOE 48 | . . . . 11 5 10 2 11 4 5 . Classes Destroyed 18 | 1 5 . . 1 5 1 . 2 2 1 . Worker 10 | . 1 . . . 3 . 1 . . 5 . Builder 9 | . . . . . 2 . 2 . 2 3 . Tunneler 10 | 9 . . . . 1 . . . . . . Hauler 12 | . 2 . . . 4 . 1 . . 5 . Recycler 10 | . . . . . 3 . 1 . 4 2 . Mechanic 1 | . . . . . . . . . . 1 . Operator 2 | . . . . . . . . . 1 1 . Watcher 12 | . 3 . . . 4 . 2 1 1 1 . Swarmer 35 | . 6 6 . 4 4 . 3 5 . 7 . Grunt 69 | . 8 2 . . 10 12 4 16 12 5 . Brawler 5 | . . . . . . 1 . 4 . . . Duelist 2 | . . . . . 1 1 . . . . . Protector 1 | . . . . . . . . . 1 . . Sentry 27 | . . . . . 5 5 4 5 5 3 . Specialist 3 | . . . . . . . . 2 1 . . Hunter 3 | . . . . . 1 . 1 . 1 . . Programmer 8 | . . . . . . . . 2 . 6 . Assembled 14 | . . . . 14 . . . . . . . Best Kill Streak 11 | 2 4 3 . 7 10 4 3 6 11 5 . Combat Bots Only 10 | . 4 3 . 7 4 4 2 6 10 5 . Max Kills in Single Turn 4 | 1 2 1 . 4 2 2 3 4 3 1 . Gunslinging 1 | . 1 . . . . . . . . . . Exploded 4 | . . . . 4 2 2 2 4 3 1 . Melee 1 | . . . . 1 1 . . 1 1 1 . Uniques/NPCs Destroyed . | . . . . . . . . . . . . Combat | -11 -10 -10 -10 -9 -8 -8 -8 -8 -8 -7 -7 -------- Run | Yrd Mat Min Exi Min Mat Gar Mat Gar Mat Fac Was Hostile Shots Fired 859 | . 61 28 . 72 83 45 72 128 219 146 5 Missed 247 | . 15 7 . 18 20 14 19 41 63 50 . Hits 612 | . 46 21 . 54 63 31 53 87 156 96 5 Melee 8 | . . . . 1 . . . 2 . . 5 Projectile 604 | . 46 21 . 53 63 31 53 85 156 96 . Critical Strikes 20 | . 1 . . . 3 2 . 5 5 2 2 Part Disruptions 2 | . . . . 2 . . . . . . . Damage Taken 9030 | . 419 220 . 841 908 860 699 1380 2258 1239 206 Core 813 | . 88 . . 106 55 98 47 27 176 134 82 Absorbed by Shields . | . . . . . . . . . . . . Ignored by Resistances 137 | . . . . . . 17 21 99 . . . Regen/Repaired (Parts) 469 | . 177 . . . 144 . . . . 148 . Core Remaining (%) 49 | 100 . . . 22 . . . . 26 . . Volleys Fired 516 | 27 69 14 . 24 76 58 57 108 58 25 . Largest 2 | 2 2 2 . 2 2 2 2 2 2 2 . Hottest 100 | 70 100 66 . 81 88 88 88 80 80 80 . Shots Fired 871 | 54 121 28 . 37 139 89 89 175 101 38 . Gun 142 | 54 88 . . . . . . . . . . Cannon 662 | . 20 28 . 29 129 79 85 163 97 32 . Launcher 54 | . . . . 8 10 10 4 12 4 6 . Special 13 | . 13 . . . . . . . . . . Kinetic 734 | 27 65 28 . 29 129 79 85 163 97 32 . Thermal 83 | 27 56 . . . . . . . . . . Explosive 54 | . . . . 8 10 10 4 12 4 6 . Electromagnetic . | . . . . . . . . . . . . Robot Hit Streak 14 | 5 13 5 . 8 7 8 14 12 10 13 . Robot Miss Streak 10 | 3 5 3 . 3 3 4 9 10 9 1 . Penetration Max 1 | . . . . . 1 1 1 . . . . Secondary Targets 1 | . 1 . . . . . . . . . . Max Gunslinging Chain 1 | . 1 . . . . . . . . . . Shots Hit Robots 552 | 30 64 18 4 24 72 31 47 114 69 79 . Core Hits 380 | 14 33 10 . 21 48 35 37 94 49 39 . Critical Kills 7 | . 1 . . . 1 3 2 . . . . Critical Parts Destroyed 8 | . . . . . 1 4 3 . . . . Critical Strikes 47 | 3 2 1 . 2 8 8 7 3 4 9 . Burn 3 | 3 . . . . . . . . . . . Destroy 15 | . 1 . . . 2 7 5 . . . . Blast 23 | . 1 1 . 2 6 1 2 3 4 3 . Sever 6 | . . . . . . . . . . 6 . Melee Attacks 151 | . . . 4 9 7 . 2 15 21 93 . Impact . | . . . . . . . . . . . . Slashing 136 | . . . . 9 7 . 2 5 21 92 . Piercing . | . . . . . . . . . . . . Sneak Attacks 48 | . . . 4 . 3 . 2 10 11 18 . Combat Hostiles . | . . . . . . . . . . . . Follow-up Attacks . | . . . . . . . . . . . . Damage Inflicted 21076 | 308 794 388 . 1356 3093 2079 1509 3668 3425 4456 . Guns 829 | 308 521 . . . . . . . . . . Cannons 9148 | . 267 385 . 329 2018 773 1142 2355 1367 512 . Explosions 5323 | . . . . 709 586 1306 148 1159 931 484 . Melee 5669 | . . . . 316 448 . 192 151 1102 3460 . Ramming 107 | . 6 3 . 2 41 . 27 3 25 . . Kinetic 9485 | 130 474 385 . 329 2018 773 1142 2355 1367 512 . Thermal 492 | 178 314 . . . . . . . . . . Explosive 5323 | . . . . 709 586 1306 148 1159 931 484 . Electromagnetic . | . . . . . . . . . . . . Impact . | . . . . . . . . . . . . Slashing 5669 | . . . . 316 448 . 192 151 1102 3460 . Piercing . | . . . . . . . . . . . . Highest Corruption 8 | . . 3 3 8 . . . . . 2 5 Average Corruption 2 | . . 3 3 3 . . . . . 1 5 Corruption Purged 2 | . . . . . . . . . . 2 . Corruption Blocked . | . . . . . . . . . . . . Effects 67 | . . . 17 22 . . . . . 27 1 Message Errors 15 | . . . 4 5 . . . . . 6 . Matter Fused 19 | . . . 5 6 . . . . . 8 . Heat Flow Errors 6 | . . . 2 . . . . . . 4 . Energy Discharges 10 | . . . 2 4 . . . . . 4 . Parts Rejected 1 | . . . . . . . . . . . 1 Data Loss (minor) 10 | . . . 3 5 . . . . . 2 . Data Loss (major) 1 | . . . 1 . . . . . . . . Misfires 3 | . . . . 2 . . . . . 1 . Alerts 2 | . . . . . . . . . . 2 . Overload Shots . | . . . . . . . . . . . . Overflow Damage 1105 | . . 1 . 43 99 . 4 83 464 411 . Projectiles 134 | . . 1 . 4 64 . 4 22 28 11 . Explosions 89 | . . . . 19 . . . 31 20 19 . Melee 882 | . . . . 20 35 . . 30 416 381 . Knockbacks 107 | . 6 6 . 10 14 3 8 36 21 3 . Impact 2 | . 1 . . . . . 1 . . . . Kinetic 97 | . 4 4 . 8 13 3 6 35 21 3 . Secondary 8 | . 1 2 . 2 1 . 1 1 . . . Self-Inflicted Damage 198 | . . . . 109 8 . 23 25 33 . . Shots 8 | . . . . 3 1 . 1 2 1 . . Rammed 23 | . 6 1 . 1 5 . 2 1 7 . . Targets Rammed 26 | . 7 1 . 1 7 . 2 1 7 . . Kicked . | . . . . . . . . . . . . Crushed 3 | . 1 . . . 2 . . . . . . Highest Temperature 345 | 80 164 33 217 42 219 237 234 345 174 267 . Average Temperature 53 | 26 37 12 95 11 66 68 55 61 42 73 . Received Heat Transfer 2945 | . 105 9 . 80 441 261 162 621 936 330 . Effects 4 | . . . . . 3 . . 1 . . . Interference 3 | . . . . . 3 . . . . . . Short Circuit 1 | . . . . . . . . 1 . . . Siege Activations . | . . . . . . . . . . . . Martial Activations . | . . . . . . . . . . . . Shielding Activations . | . . . . . . . . . . . . Robots Disrupted . | . . . . . . . . . . . . Combat Hostiles . | . . . . . . . . . . . . Robots Corrupted . | . . . . . . . . . . . . Combat Hostiles . | . . . . . . . . . . . . Parts Fried . | . . . . . . . . . . . . Impact Corruptions . | . . . . . . . . . . . . Robots Melted . | . . . . . . . . . . . . Combat Hostiles . | . . . . . . . . . . . . Parts Melted 2 | 1 1 . . . . . . . . . . Heat Transferred 1665 | 740 925 . . . . . . . . . . Parts Sabotaged . | . . . . . . . . . . . . Parts Stolen . | . . . . . . . . . . . . Parts Stripped . | . . . . . . . . . . . . Power Chain Reactions . | . . . . . . . . . . . . Alert | -11 -10 -10 -10 -9 -8 -8 -8 -8 -8 -7 -7 ------- Run | Yrd Mat Min Exi Min Mat Gar Mat Gar Mat Fac Was Maximum Alert Level 5 | . . . . . 1 3 2 5 3 2 . Low Security (%) 63 | 100 100 100 . 100 76 5 80 3 . 85 100 Level 1 11 | . . . . . 23 21 19 13 1 12 . Level 2 13 | . . . . . . 52 . 14 82 2 . Level 3 5 | . . . . . . 20 . 20 15 . . Level 4 5 | . . . . . . . . 46 . . . Level 5 . | . . . . . . . . . . . . High Security . | . . . . . . . . . . . . Max Security . | . . . . . . . . . . . . Peak Influence 1679 | 5 107 85 . 108 349 918 447 1679 818 436 151 Initial 818 | . . 30 . . . 192 447 107 818 228 151 Average 269 | . 27 14 . 14 130 526 153 927 569 112 126 Influence Increases 6458 | 45 519 206 . 203 865 736 491 1712 654 1027 . Destroy 0b10 Robot/C 3080 | . 280 160 . 80 420 380 240 720 380 420 . Destroy 0b10 Robot/NC 340 | 45 30 . . . 85 . 35 10 45 90 . Destroy Leader 586 | . 60 30 . 10 116 10 76 40 102 142 . Allied During Kill 79 | . . . . . . 12 . 67 . . . Successful Hack 188 | . 60 . . . 26 7 30 14 5 46 . Select Force Hacks 60 | . 60 . . . . . . . . . . Disable Machine 285 | . 15 15 . 45 45 45 15 45 30 30 . Anti-Garrison Action 800 | . . . . . . 200 . 600 . . . Destroy Structure 635 | . 14 1 . 68 128 82 50 141 77 74 . Partial Spotted 15 | . . . . . 15 . . . . . . Lose Combat Pursuer 390 | . . . . . 30 . 45 75 15 225 . Influence Decreases 6407 | 45 440 285 . 203 569 114 1243 199 1830 1098 381 Entered New Map 2100 | . . 49 . . . 104 471 59 861 275 281 Time Decay 3102 | 45 440 236 . 200 389 . 612 . 559 601 20 Lost Part 321 | . . . . 3 30 10 . 20 110 68 80 Lost Ally 130 | . . . . . . . 10 120 . . . Purge Threat 754 | . . . . . 150 . 150 . 300 154 . Squads Dispatched 27 | . 3 . . . 1 . 4 . 7 12 . Investigation 6 | . 3 . . . . . . . 1 2 . Extermination 7 | . . . . . . . . . . 7 . Reinforcement 9 | . . . . . 1 . 1 . 4 3 . Assault 2 | . . . . . . . . . 2 . . Garrison 3 | . . . . . . . 3 . . . . Intercept . | . . . . . . . . . . . . Searches Triggered . | . . . . . . . . . . . . Construction Impeded 1 | . . . . . . . 1 . . . . Haulers Reinforced 1 | . . . . . . . . . . 1 . Active Scanning Responses . | . . . . . . . . . . . . Cargo Convoy Interrupts . | . . . . . . . . . . . . Stealth | -11 -10 -10 -10 -9 -8 -8 -8 -8 -8 -7 -7 --------- Run | Yrd Mat Min Exi Min Mat Gar Mat Gar Mat Fac Was Distress Signals 11 | . 1 . . 1 4 . 2 1 1 1 . Communications Jammed . | . . . . . . . . . . . . Distress Signals . | . . . . . . . . . . . . Times Spotted 252 | . 26 8 . 20 34 18 24 40 32 44 6 Peak Tracking Total 8 | . 5 3 . 8 5 4 4 5 8 6 6 Tactical Retreats 19 | . . . . 2 2 . 3 5 1 6 . Traps | -11 -10 -10 -10 -9 -8 -8 -8 -8 -8 -7 -7 ------- Run | Yrd Mat Min Exi Min Mat Gar Mat Gar Mat Fac Was Traps Triggered 25 | . 1 1 . . 4 9 . 7 . 3 . Indirectly . | . . . . . . . . . . . . Trap Hack Attempts 24 | . . . . . 24 . . . . . . Triggered . | . . . . . . . . . . . . Disarmed . | . . . . . . . . . . . . Reprogrammed 2 | . . . . . 2 . . . . . . Reused . | . . . . . . . . . . . . Traps Extracted 2 | . . . . . 2 . . . . . . Installed . | . . . . . . . . . . . . Triggered . | . . . . . . . . . . . . Most Traps Carried 2 | . . . . . 2 2 2 2 2 2 . Machines | -11 -10 -10 -10 -9 -8 -8 -8 -8 -8 -7 -7 ---------- Run | Yrd Mat Min Exi Min Mat Gar Mat Gar Mat Fac Was Machines Disabled 24 | . 1 1 . 3 3 5 1 6 2 2 . Max in Single Turn 2 | . 1 1 . 2 1 1 1 1 2 1 . Garrison Access 1 | . . . . . . . . . . 1 . Garrison Relay 5 | . . . . . . 2 . 3 . . . Machines Repaired . | . . . . . . . . . . . . Machines Dismantled . | . . . . . . . . . . . . Machines Sabotaged . | . . . . . . . . . . . . Overloaded Fab Kills . | . . . . . . . . . . . . Hacking | -11 -10 -10 -10 -9 -8 -8 -8 -8 -8 -7 -7 --------- Run | Yrd Mat Min Exi Min Mat Gar Mat Gar Mat Fac Was Machines Accessed 59 | . 10 1 2 1 9 1 8 2 6 19 . Terminals 38 | . 7 . . 1 6 1 6 2 6 9 . Fabricators 3 | . . . . . . . . . . 3 . Repair Stations 5 | . 1 . . . 1 . . . . 3 . Recycling Units 7 | . 2 . . . 1 . 1 . . 3 . Scanalyzers . | . . . . . . . . . . . . Garrison Access 3 | . . . . . 1 . 1 . . 1 . Total Hacks 168 | . 40 1 2 2 27 1 21 4 16 54 . Successful 78 | . 22 1 2 . 14 1 12 1 3 22 . Failed 89 | . 17 . . 2 13 . 9 3 13 32 . Catastrophic 14 | . 1 . . 1 1 . 2 2 1 6 . Database Lockouts 1 | . 1 . . . . . . . . . . Manual 90 | . 23 . 1 2 22 . 15 1 7 19 . Terminals 123 | . 30 . . 2 22 1 19 4 16 29 . Fabricators 11 | . . . . . . . . . . 11 . Repair Stations 11 | . 2 . . . 2 . . . . 7 . Recycling Units 16 | . 8 . . . 2 . 1 . . 5 . Scanalyzers . | . . . . . . . . . . . . Garrison Access 4 | . . . . . 1 . 1 . . 2 . Terminal Hacks 38 | . 9 1 2 . 6 1 7 1 2 9 . Record 1 | . . . 1 . . . . . . . . Part Schematic 3 | . . . . . 2 . . . . 1 . Robot Analysis 3 | . 1 . . . 1 . 1 . . . . Prototype ID Bank 3 | . 3 . . . . . . . . . . Open Door 2 | . . 1 . . . 1 . . . . . Branch Access Points 1 | . . . . . . . . . . 1 . Emergency Access Points 1 | . . . . . . . . 1 . . . Terminal Index 2 | . . . . . 1 . . . . 1 . Scanalyzer Index 1 | . . . . . . . 1 . . . . Garrison Index 1 | . . . . . . . 1 . . . . Alert Level 1 | . . . . . . . 1 . . . . Unreport Threat 6 | . . . . . 1 . 1 . 2 2 . Locate Traps 3 | . 2 . . . . . . . . 1 . Recall Investigation 1 | . . . . . . . . . . 1 . Hauler Manifests 1 | . . . . . . . 1 . . . . Registered Components 1 | . 1 . . . . . . . . . . Registered Prototypes 1 | . 1 . . . . . . . . . . Zone Layout 5 | . 1 . . . 1 . 1 . . 2 . Proto ID Catalog 1 | . . . 1 . . . . . . . . Fabricator Hacks 6 | . . . . . . . . . . 6 . Network Status 1 | . . . . . . . . . . 1 . Load Schematic 3 | . . . . . . . . . . 3 . Build 2 | . . . . . . . . . . 2 . Repair Station Hacks 6 | . 2 . . . 2 . . . . 2 . Scan Component 3 | . 1 . . . 1 . . . . 1 . Repair 3 | . 1 . . . 1 . . . . 1 . Recycling Unit Hacks 5 | . 1 . . . 1 . 1 . . 2 . Retrieve Components 5 | . 1 . . . 1 . 1 . . 2 . Scanalyzer . | . . . . . . . . . . . . Garrison Access Hacks 3 | . . . . . 1 . 1 . . 1 . Unlock Access 2 | . . . . . 1 . 1 . . . . Seal Access 1 | . . . . . . . . . . 1 . Unauthorized Hacks 20 | . 10 . . . 4 . 3 . 1 2 . Terminals 17 | . 8 . . . 4 . 3 . 1 1 . Assimilate 1 | . . . . . . . 1 . . . . Botnet 6 | . 1 . . . 1 . 2 . 1 1 . Operators 2 | . 2 . . . . . . . . . . Skim 8 | . 5 . . . 3 . . . . . . Fabricators 1 | . . . . . . . . . . 1 . Recompile 1 | . . . . . . . . . . 1 . Repair Stations . | . . . . . . . . . . . . Recycling Units 2 | . 2 . . . . . . . . . . Tunnel 2 | . 2 . . . . . . . . . . Scanalyzers . | . . . . . . . . . . . . Garrison Access . | . . . . . . . . . . . . Data Cores Recovered . | . . . . . . . . . . . . Used . | . . . . . . . . . . . . Hacking Detections 51 | . 10 . . 1 7 . 8 2 6 17 . Full Trace Events 3 | . . . . . . . . 1 1 1 . Feedback Events . | . . . . . . . . . . . . Feedback Blocked . | . . . . . . . . . . . . Robot Schematics Acquired . | . . . . . . . . . . . . Robots Built . | . . . . . . . . . . . . Authchips . | . . . . . . . . . . . . Time . | . . . . . . . . . . . . Total Robot Build Rating . | . . . . . . . . . . . . Part Schematics Acquired 3 | . . . . . 2 . . . . 1 . Parts Built 2 | . . . . . . . . . . 2 . Authchips 1 | . . . . . . . . . . 1 . Time 202 | . . . . . . . . . . 202 . Total Part Build Rating 10 | . . . . . . . . . . 10 . Parts Repaired 3 | . 1 . . . 1 . . . . 1 . Time 114 | . 26 . . . 50 . . . . 38 . Parts Recycled . | . . . . . . . . . . . . Recycled Matter . | . . . . . . . . . . . . Retrieved Matter . | . . . . . . . . . . . . Retrieved Components 25 | . 1 . . . 2 . 10 . . 12 . Parts Scanalyzed . | . . . . . . . . . . . . Part Schematics Acquired . | . . . . . . . . . . . . Parts Damaged . | . . . . . . . . . . . . Bothacking | -11 -10 -10 -10 -9 -8 -8 -8 -8 -8 -7 -7 ------------ Run | Yrd Mat Min Exi Min Mat Gar Mat Gar Mat Fac Was Used RIF Installer . | . . . . . . . . . . . . Robots Hacked 5 | . . . 4 . . . . . . 1 . Non-combat 4 | . . . 3 . . . . . . 1 . Combat 1 | . . . 1 . . . . . . . . Robot Hacks Applied 5 | . . . 4 . . . . . . 1 . parse_system 4 | . . . 4 . . . . . . . . find_chute 1 | . . . . . . . . . . 1 . Relay Couplers Released 17 | . . . . . . 7 . 10 . . . Machine Destruction 17 | . . . . . . 7 . 10 . . . Fabnet Peak Effective % . | . . . . . . . . . . . . Robots Rewired 8 | . . . . . . 2 . 6 . . . Allies Hacked . | . . . . . . . . . . . . Hacks Repelled . | . . . . . . . . . . . . Allies | -11 -10 -10 -10 -9 -8 -8 -8 -8 -8 -7 -7 -------- Run | Yrd Mat Min Exi Min Mat Gar Mat Gar Mat Fac Was Total Allies 12 | . . . . 3 . 2 1 6 . . . Largest Group 6 | . . . . 3 . 2 1 6 . . . Highest-Rated Group 99 | . . . . 40 . 64 10 99 . . . Highest-Rated Ally 39 | . . . . 16 . 39 10 18 . . . Initial Warlord ECA Mod 49 | . . . . . . . 6 6 13 12 12 Total Orders . | . . . . . . . . . . . . Ally Attacks 21 | . . . . 6 . . . 15 . . . Total Damage 324 | . . . . 40 . . . 284 . . . Kills 2 | . . . . . . . . 2 . . . Allies Corrupted . | . . . . . . . . . . . . Allies Melted . | . . . . . . . . . . . . Intel | -11 -10 -10 -10 -9 -8 -8 -8 -8 -8 -7 -7 ------- Run | Yrd Mat Min Exi Min Mat Gar Mat Gar Mat Fac Was Active Infowar (turns) 14638 | 567 1958 1324 1007 892 1395 906 1466 1170 1109 2798 46 Optics 1 | . . . . . 1 . . . . . . Terrain 2395 | . . . . . 1085 . . . 511 799 . Structural 4716 | . . . . 459 309 . 1319 . 1108 1521 . Seismic 10180 | 567 1958 1324 1007 433 . 906 147 1170 . 2636 32 Machine Analysis 2010 | . . . . . . . . . . 1964 46 Robot Analysis Total 3 | . 1 . . . 1 . 1 . . . . Derelict Logs Recovered 2 | . . 1 . 1 . . . . . . . Drone Launches . | . . . . . . . . . . . . Drone Recoveries . | . . . . . . . . . . . . Exploration | -11 -10 -10 -10 -9 -8 -8 -8 -8 -8 -7 -7 ------------- Run | Yrd Mat Min Exi Min Mat Gar Mat Gar Mat Fac Was Turns Passed 18941 | 660 1958 1324 1007 1129 2757 1337 2001 2265 1659 2798 46 Spaces Moved 9141 | 358 1003 783 494 612 1053 442 686 773 528 2308 101 Core 14 | 12 . . . . . . . . . . 2 Treads 6252 | 346 1003 783 494 197 792 442 686 773 528 208 . Legs . | . . . . . . . . . . . . Wheels 1645 | . . . . 415 261 . . . . 969 . Hover 420 | . . . . . . . . . . 420 . Flight 810 | . . . . . . . . . . 711 99 Fastest Speed 24 | 50 160 160 160 110 110 250 243 231 231 27 24 Average Speed 170 | 156 160 160 200 152 199 250 244 239 233 97 33 Slowest Speed 490 | 160 160 160 240 320 250 250 250 321 237 490 250 Overloaded Moves 3 | . . . . . . . . . . . 3 Propulsion Burnouts . | . . . . . . . . . . . . Robots Hopped 7 | . . . . . . . . . . 7 . Potential Cave-ins . | . . . . . . . . . . . . Cave-ins Triggered . | . . . . . . . . . . . . Exploration Rate (%) 62 | 13 98 99 75 74 76 47 55 71 40 47 58 Regions Visited 11 Branch Regions 3 Pre-discovered Areas 7 | . 5 . 1 1 . . . . . . . Known Exits Taken 5 | . 1 . . 1 1 . 1 . 1 . . Unknown Exits Taken 3 | 1 . 1 1 . . . . . . . . Scrap Searched 2 | . . 1 . 1 . . . . . . . Spaces Dug 268 | . 12 . . 54 12 15 12 74 22 67 . Terrain Destroyed 621 | . 13 1 . 104 142 44 57 79 99 82 . Melee 38 | . . . . 3 . . . 1 8 26 . Projectile 170 | . 13 1 . 5 69 10 27 1 38 6 . AOE 413 | . . . . 96 73 34 30 77 53 50 . Terrain Rammed . | . . . . . . . . . . . . Walls Destroyed . | . . . . . . . . . . . . Machines Disabled . | . . . . . . . . . . . . Actions | -11 -10 -10 -10 -9 -8 -8 -8 -8 -8 -7 -7 --------- Run | Yrd Mat Min Exi Min Mat Gar Mat Gar Mat Fac Was Total 11425 | 407 1214 827 512 759 1548 580 928 994 822 2722 112 Wait 952 | 8 87 17 . 91 276 24 130 48 139 130 2 Move 9117 | 357 1002 782 493 611 1053 441 686 770 527 2294 101 Hop 7 | . . . . . . . . . . 7 . Pick Up 138 | 8 22 4 6 1 22 7 11 5 18 30 4 Fast Attach 60 | 6 3 . 1 3 19 . 4 2 3 17 2 Attach 55 | 1 . 1 . 4 5 1 2 4 13 22 2 Detach 24 | . 2 . . 2 5 . 1 . 3 11 . Swap 185 | . 14 4 3 11 29 25 15 25 21 38 . Drop 144 | . 8 4 5 2 25 8 18 6 12 55 1 Fire 516 | 27 69 14 . 24 76 58 57 108 58 25 . Melee 151 | . . . 4 9 7 . 2 15 21 93 . Ram 1 | . . . . . 1 . . . . . . Kick . | . . . . . . . . . . . . Crush 25 | . 7 1 . 1 6 . 2 1 7 . . Escape Stasis 12 | . . . . . . 4 . 8 . . . Rewire 14 | . . . . . . 12 . 2 . . . Trap 24 | . . . . . 24 . . . . . . Miscellaneous . | . . . . . . . . . . . . Route ------- -11/Scrapyard -10/Materials (discovered 6 exits: *Mat x3 / *Min x2 / Sub) -10/Mines (discovered 4 exits: *Mat x2 / *Exi / Sub) -10/Exiles -9/Mines (discovered 2 exits: *Mat x2) -8/Materials (discovered 4 exits: *Fac x3 / Gar) -8/Garrison -8/Materials (discovered 2 exits: *Fac / Gar) -8/Garrison (discovered 3 exits: *Mat x3) -8/Materials -7/Factory (discovered 4 exits: [*Fac x2] / *Low x2) -7/Waste History --------- Turn | Location | Event 5 | -11/Scrapyard | Discovered new exit (range 16) 661 | -11/Scrapyard | Entered Materials 662 | -10/Materials | Build established: Mutant 853 | -10/Materials | Central database locked down 895 | -10/Materials | Discovered new exit (range 14) 1033 | -10/Materials | Discovered new exit (range 13) 1177 | -10/Materials | Identified exit to Materials 1177 | -10/Materials | Identified exit to Mines 1369 | -10/Materials | Learned 4 Subcaves zone layouts 1376 | -10/Materials | Learned location of Storage (-9) 1391 | -10/Materials | Learned 2 Mines zone layouts 1415 | -10/Materials | Identified exit to Subcaves 1415 | -10/Materials | Learned location of 1 exit from Materials 2145 | -10/Materials | Repaired Lrg. Storage Unit 2619 | -10/Materials | Entered Mines 2901 | -10/Mines | Learned Materials stockpile data 2960 | -10/Mines | Met a Derelict who couldn't figure out how to use a Trap Extractor 3012 | -10/Mines | Received a Rocket Launcher from a helpful Derelict 3221 | -10/Mines | A weapon hastily lodged in a ceiling crevice suddenly fell to the ground 3267 | -10/Mines | Deemed a non-threat by the Exiles lab entrance 3731 | -10/Mines | Discovered new exit (range 5) 3943 | -10/Mines | Entered Exiles 3982 | -10/Exiles | Met 8R-AWN 4010 | -10/Exiles | Met EX-HEX 4064 | -10/Exiles | Met EX-BIN 4084 | -10/Exiles | Aligned with FarCom system 4086 | -10/Exiles | Given EX-Vault access code 4124 | -10/Exiles | Opened EX-Vault 4136 | -10/Exiles | Found Longsword +1 4144 | -10/Exiles | Found Latent Energy Streamer 4190 | -10/Exiles | Warned to stay clear of 0b10 Research branches 4231 | -10/Exiles | Met EX-DEC 4272 | -10/Exiles | Learned location of Zion (-7) 4548 | -10/Exiles | Found AWS/Autocannon 4763 | -10/Exiles | Visited The Gauntlet 4926 | -10/Exiles | Discovered new exit (range 12) 4950 | -10/Exiles | Stole three prototypes: Latent Energy Streamer, AWS/Autocannon, Longsword +1 4950 | -10/Exiles | Entered Mines 4951 | -9/Mines | Identified exit to Materials 5081 | -9/Mines | Assisted by bots powering up and referring to "LRC-V3" 5221 | -9/Mines | Assembled infested the area 5226 | -9/Mines | Assisted by a Guerilla fighting off Assembled 5276 | -9/Mines | Lost 3 allies 5282 | -9/Mines | Destroyed 7 combat bots 5353 | -9/Mines | Core integrity fell below 50% 5428 | -9/Mines | Lost 5 parts (1p2n1u1w) 6046 | -9/Mines | Discovered exit to Materials (range 8) 6060 | -9/Mines | Learned Materials emergency access door positions 6079 | -9/Mines | Entered Materials 6079 | -8/Materials | Evolved 4 slots: Propulsion x2, Utility x2 6080 | -8/Materials | Identified exit to Factory 6203 | -8/Materials | Discovered exit to Factory (range 9) 6601 | -8/Materials | Build established: Skirmisher 7102 | -8/Materials | Build established: Assassin 7673 | -8/Materials | Build established: Scavenger-Mutant 7782 | -8/Materials | Repaired Bore Cannon 8326 | -8/Materials | Build established: Mutant 8476 | -8/Materials | Discovered exit to Factory (range 3) 8834 | -8/Materials | Identified exit to Garrison 8836 | -8/Materials | Entered Garrison 8960 | -8/Garrison | Triggered checkpoint 9530 | -8/Garrison | Garrison Relay disabled 9592 | -8/Garrison | Triggered checkpoint 9695 | -8/Garrison | Triggered checkpoint 9888 | -8/Garrison | Triggered checkpoint 9897 | -8/Garrison | Garrison Relay disabled 10015 | -8/Garrison | Triggered checkpoint 10031 | -8/Garrison | Discovered new exit (range 15) 10173 | -8/Garrison | Entered Materials 11008 | -8/Materials | Discovered exit to Factory (range 3) 11780 | -8/Materials | Garrison activated, responded to threat 12174 | -8/Materials | Identified exit to Garrison 12174 | -8/Materials | Entered Garrison 12265 | -8/Garrison | Triggered checkpoint 12366 | -8/Garrison | Lost 6 allies 12573 | -8/Garrison | Triggered checkpoint 12584 | -8/Garrison | Discovered new exit (range 11) 12614 | -8/Garrison | Garrison Relay disabled 12893 | -8/Garrison | Triggered checkpoint 13044 | -8/Garrison | Triggered checkpoint 13731 | -8/Garrison | Attempted to access garrison exit controls, blocked by remote lockdown 13926 | -8/Garrison | Discovered new exit (range 12) 14009 | -8/Garrison | Attempted to access garrison exit controls, blocked by remote lockdown 14052 | -8/Garrison | Triggered checkpoint 14168 | -8/Garrison | Garrison Relay disabled 14278 | -8/Garrison | Triggered checkpoint 14278 | -8/Garrison | Triggered checkpoint 14418 | -8/Garrison | Discovered new exit (range 10) 14439 | -8/Garrison | Entered Materials 14839 | -8/Materials | First assault squad dispatched 15240 | -8/Materials | Core integrity fell below 50% 15311 | -8/Materials | Lost 5 parts (1p1n3u) 15318 | -8/Materials | Destroyed 10 combat bots 15487 | -8/Materials | Lost 4 parts (2n2w) 15869 | -8/Materials | Build established: Skirmisher 15997 | -8/Materials | Discovered exit to Factory (range 5) 16098 | -8/Materials | Entered Factory 16098 | -7/Factory | Evolved 2 slots: Utility x2 16100 | -7/Factory | FarCom data flow suspended 16424 | -7/Factory | Build established: Mutant 16822 | -7/Factory | Build established: Scavenger-Mutant 17042 | -7/Factory | Repaired Hrd. Medium Armor Plating? 17436 | -7/Factory | Build established: Hacker-Mutant 18125 | -7/Factory | Discovered new exit (range 5) 18341 | -7/Factory | Discovered new exit (range 10) 18344 | -7/Factory | Build established: Scavenger-Mutant 18364 | -7/Factory | Fabricated Cld. Cesium-ion Thruster? 18429 | -7/Factory | Discovered new exit (range 10) 18501 | -7/Factory | Identified exit to Lower Caves 18562 | -7/Factory | Fabricated Cld. Cesium-ion Thruster? 18858 | -7/Factory | Build established: Hacker-Sprinter 18896 | -7/Factory | Sucked down chute 18896 | -7/Factory | Entered Waste 18901 | -7/Waste | Spotted C-40 Crusher 18911 | -7/Waste | EMP discharged 18915 | -7/Waste | Spotted C-40 Crusher 18917 | -7/Waste | Spotted C-40 Crusher 18917 | -7/Waste | Spotted C-40 Crusher 18920 | -7/Waste | Spotted C-40 Crusher 18921 | -7/Waste | Spotted C-40 Crusher 18925 | -7/Waste | Crushed by Compactor (1 part destroyed, 2 dropped) 18928 | -7/Waste | Crushed by Compactor (1 part destroyed, 1 dropped) 18934 | -7/Waste | Crushed by Compactor (1 part destroyed, 1 dropped) 18940 | -7/Waste | Crushed by Compactor (1 part destroyed, 1 dropped) 18940 | -7/Waste | Crushed by Compactor (1 part destroyed, 1 dropped) 18942 | -7/Waste | Self-destructed Last Messages --------------- 18928_ Seismic Detector crushed. 18928_ Hacking Suite destroyed. 18928_ Xenon Bombardment Thruster destroyed. 18930_ Lgt. Nuclear Core crushed. 18930_ Mic. Nuclear Core crushed. 18932_ System corrupted: Imp. Cesium-ion Thruster rejected. 18932_ Seismic Detector crushed. 18932_ Acquired Imp. Cesium-ion Thruster. 18934_ Cld. Cesium-ion Thruster crushed. 18934_ Med. Storage Unit crushed. 18934_ Imp. Cesium-ion Thruster destroyed. 18935_ Acquired Med. Storage Unit. 18938_ Mic. Nuclear Core crushed. 18939_ Acquired Adv. Hacking Suite. 18940_ Plasma Cutter crushed. 18940_ Med. Storage Unit crushed. 18940_ Longsword +1 crushed. 18940_ System Shield crushed. 18940_ Hacking Suite crushed. Map ----- +----------------------------------------------------+ | ?????????# #??????????????????????????????? | | ?????????# #??????????????????????????????? | | ?????????# #??????????????????????????????? | | ?????????# ! #??????????????????????????????? | | ?????????# #??????????????????????????????? | | ?????????# #??????????????????????????????? | | #####????# ! #????######????????????????????? | | #????### ###????# #????????????????????? | | #??????# #??????# #????????????????????? | | #??????# #??????# #????????????????????? | | #??????# #??????# #????????????????????? | | ######## ######## #????????????????????? | | #????????????????????? | | #????????????????????? | | #????????????????????? | | #????????????????????? | | ######## ######## #????????????????????? | | #??????# #??????# #????????????????????? | | #??????# #??????# #????????????????????? | | #??????# #??????# #????????????????????? | | ######## ######## #????????????????????? | | #????????????????????? | | #????????????????????? | | CC#????????????????????? | | /CC#????????????????????? | | ######## ######## @CC#????????????????????? | | #??????? ???????#CCCC#????????????????????? | | #???????? ????????#CCCC#???????????#????????? | | #??????????????????# CC#????????? ?????????? | | ########???????????# CC ######## #????????? | | ???????# CC C ???????? | | ???????# CC ???????? | | ???????# ???????? | | = ???????# ???????? | | ######## ????????# ######## #????????? | | #????????? ????????# #????????? #????????? | | #??????????????????# #????????????????????? | | #??????????????????# #????????????????????? | | #??????????????????# #????????????????????? | | #####??????????????????######????????????????????? | | ?????????????????????????????????????????????????? | | ?????????????????????????????????????????????????? | | ?????????????????????????????????????????????????? | | ?????????????????????????????????????????????????? | | ?????????????????????????????????????????????????? | | ?????????????????????????????????????????????????? | | ?????????????????????????????????????????????????? | | ?????????????????????????????????????????????????? | | ?????????????????????????????????????????????????? | | ?????????????????????????????????????????????????? | +----------------------------------------------------+ Best States ------------- Heat Dissipation 53 Energy Generation 17 Energy Capacity 300 Matter Stores 300 Matter Capacity 300 Sight Range 16 Terrain Scan Range 16 Terrain Scan Density 210 Additional Mass Support 6 Armor Coverage 825 Resistance: TH 15 Evasion (%) 64 Melee Accuracy 12 Recoil Reduction 4 Kinecelleration 30 Offensive Hacking 20 Defensive Hacking 20 Authchip Count 1 Trap Extractor Capacity 6 Item Schematics ----------------- Hacking Suite | -8/Materials | Hacked Imp. Utility Shielding | -8/Materials | Hacked Cld. Cesium-ion Thruster | -7/Factory | Hacked Robot Schematics ------------------ None Fabricated ------------ Cld. Cesium-ion Thruster | x1 | -7/Factory Cld. Cesium-ion Thruster | x1 | -7/Factory | Authchip Repaired ---------- Lrg. Storage Unit | 49% | -10/Materials Bore Cannon | 12% | -8/Materials Hrd. Medium Armor Plating | 38% | -7/Factory Alien Tech Used ----------------- None Achievements -------------- None Challenges ------------ None Game ------ Seed XenonGammaJets Manual? 0 Play Time 02:36:56 Cumulative 368.6 hours Start 2025.05.11 @ 18:33:49 End 2025.05.11 @ 21:22:06 Sessions 1 Manual Loads 0 Difficulty Rogue Special Mode None Game No. 178 Rogue 115 Adventurer 63 Explorer 0 Win Type - Total 8 Types 7/0/0/1/0/0/0/0/0/0 Lore% 84 Gallery% 75 Achievement% 63 Wizard Run 0 Options --------- Layout 2 ASCII 0 Keyboard 1 Movement Numpad Keybinds 0 Fullscreen 1 Font 24/Terminus Map View 50x44 Zoom Use 0% Tactical HUD 1 Map Filters NONE Filters NONE Steam 1 RUN: 4661e52c-4012-434b-b014-f08ad0033b34